bitfinex/quotes_ETHUSD_20251122
["timestamp","ask_amount","ask_price","bid_price","bid_amount"]
[1763843733527,26.40365369,2755.0,2754.9,0.001]
[1763843734708,43.03804369,2755.0,2754.9,0.001]
[1763843734927,42.53664369,2755.0,2754.9,0.001]
[1763843735128,42.53664369,2755.0,2754.9,0.4867]
[1763843735297,42.65864369,2755.0,2754.9,0.4867]
[1763843736137,42.94084369,2755.0,2754.9,0.001]
[1763843737113,42.65864369,2755.0,2754.9,0.4981]
[1763843737337,38.43282522,2755.0,2754.9,0.4981]
[1763843737805,12.51522522,2755.0,2754.9,0.4981]
[1763843738005,11.55736522,2755.0,2754.9,0.9753]
[1763843738542,6.97757671,2755.0,2754.9,0.9753]
[1763843738746,7.88456935,2755.0,2754.9,0.9753]
[1763843738907,4.25480529,2755.0,2754.9,0.9753]
[1763843739446,9.93891335,2755.0,2754.9,0.9753]
[1763843739647,7.88456935,2755.0,2754.9,0.9753]
[1763843740030,9.90807135,2755.0,2754.9,0.9753]
[1763843740626,10.07585735,2755.0,2754.9,0.9753]
[1763843740948,7.88456935,2755.0,2754.9,0.9753]
[1763843741350,4.25480529,2755.0,2754.9,0.9753]
[1763843741544,4.82436292,2755.0,2754.9,0.9753]
[1763843741850,4.25480529,2755.0,2754.9,0.9753]
[1763843742639,7.88456935,2755.0,2754.9,0.9753]
[1763843745022,8.4541203,2755.0,2754.9,0.9753]
[1763843747127,2.48852345,2755.0,2754.9,0.9753]
[1763843747839,6.11828751,2755.0,2754.9,0.9753]
[1763843748232,2.48852345,2755.0,2754.9,0.9753]
[1763843749462,6.11828751,2755.0,2754.9,0.9753]
[1763843750559,11.1748013,2755.0,2754.9,0.9753]
[1763843750749,8.4541203,2755.0,2754.9,0.9753]
[1763843751556,4.82435624,2755.0,2754.9,0.9753]
[1763843752058,2.48852345,2755.0,2754.9,0.9753]
[1763843752826,1.9189725,2755.0,2754.9,0.9753]
[1763843755772,2.48849663,2755.0,2754.9,0.9753]
[1763843760842,3.59311171,2755.0,2754.9,0.001]
[1763843761055,3.10051171,2755.0,2754.9,0.4884]
[1763843761485,2.48849663,2755.0,2754.9,0.4884]
[1763843761643,1.24592478,2755.0,2754.9,0.9394]
[1763843761844,0.002,2755.1,2754.9,0.9394]
[1763843762050,0.002,2755.1,2755.0,0.9384]
[1763843762850,0.002,2755.1,2755.0,1.40519675]
[1763843763059,0.002,2755.1,2755.0,0.9384]
[1763843769372,0.002,2755.1,2755.0,0.9863]
[1763843771320,0.002,2755.1,2755.0,0.4874]
[1763843774527,0.002,2755.1,2755.0,0.9863]
[1763843775094,0.002,2755.1,2755.0,0.4874]
[1763843775296,0.124,2755.1,2755.0,0.9863]
[1763843776508,0.124,2755.1,2755.0,0.9873]
[1763843781741,0.124,2755.1,2755.0,0.4884]
[1763843781940,0.124,2755.1,2755.0,0.9873]
[1763843784181,0.529504,2755.1,2755.0,0.4884]
[1763843785039,1.017904,2755.1,2755.0,0.4884]
[1763843785965,1.017904,2755.1,2755.0,0.9873]
[1763843788533,1.017904,2755.1,2755.0,0.4884]
[1763843789767,2.89769664,2755.1,2755.0,0.001]
[1763843789943,6.94839448,2755.1,2755.0,0.001]
[1763843790145,10.57802679,2755.1,2755.0,0.001]
[1763843791267,23.26437638,2755.1,2755.0,0.001]
[1763843792144,25.69511338,2755.1,2755.0,0.001]
[1763843793055,24.90742538,2755.1,2755.0,0.001]
[1763843793253,24.95108738,2755.1,2755.0,0.001]
[1763843793431,26.06899618,2755.1,2755.0,0.001]
[1763843794132,29.15273418,2755.1,2755.0,0.001]
[1763843794748,28.83741918,2755.1,2755.0,0.001]
[1763843794967,22.67607188,2755.1,2755.0,0.001]
[1763843795270,26.35929988,2755.1,2755.0,0.001]
[1763843796283,30.82534088,2755.1,2755.0,0.001]
[1763843796496,29.66231888,2755.1,2755.0,0.001]
[1763843797191,12.38853788,2755.1,2755.0,0.001]
[1763843797366,29.16356788,2755.1,2755.0,0.001]
[1763843798491,29.26356788,2755.1,2755.0,0.001]
[1763843798788,28.80035588,2755.1,2755.0,0.001]
[1763843799394,29.55747988,2755.1,2755.0,0.001]
[1763843799819,30.405504,2754.9,2754.8,0.001]
[1763843799961,34.26091092,2754.8,2754.7,0.001]
[1763843800306,36.43115535,2754.8,2754.7,0.001]
[1763843800511,39.80125335,2754.8,2754.7,0.001]
[1763843801331,46.24125335,2754.8,2754.7,0.001]
[1763843801468,0.405504,2753.5,2753.2,0.1856]
[1763843801902,0.405504,2753.5,2752.7,0.1856]
[1763843801903,0.885204,2753.3,2752.7,0.6756]
[1763843802088,5.42424543,2753.3,2752.7,0.6756]
[1763843802297,0.405504,2753.0,2752.7,0.1856]
[1763843802604,0.405504,2752.8,2752.7,0.1856]
[1763843803006,0.405504,2752.8,2752.7,0.6361]
[1763843803216,0.895504,2752.8,2752.7,0.6361]
[1763843803576,1.375204,2752.8,2752.4,0.1856]
[1763843804087,2.28219664,2752.8,2752.4,0.1856]
[1763843804291,1.375204,2752.8,2752.4,0.1856]
[1763843804667,2.04551469,2752.8,2752.4,0.1856]
[1763843804894,0.405504,2752.7,2752.4,0.1856]
[1763843805212,1.31249664,2752.7,2752.4,0.1856]
[1763843805411,1.31249664,2752.7,2752.1,0.49]
[1763843805714,1.31249664,2752.7,2752.2,0.1856]
[1763843805895,10.25893232,2752.8,2751.9,0.183]
[1763843805896,0.405504,2752.3,2751.9,0.183]
[1763843806102,0.405504,2752.1,2751.9,0.673]
[1763843806608,0.405504,2752.1,2752.0,0.9405]
[1763843807106,0.882204,2752.1,2752.0,0.9405]
[1763843807482,1.004204,2752.1,2752.0,0.9405]
[1763843808016,1.004204,2752.1,2751.0,2.5035847]
[1763843808017,1.483904,2752.1,2751.0,2.5035847]
[1763843808184,0.405504,2751.9,2751.6,0.1856]
[1763843808578,0.405504,2752.0,2751.8,0.4505]
[1763843808775,0.405504,2752.0,2751.6,0.6756]
[1763843808776,0.405504,2752.0,2751.6,0.1856]
[1763843809314,0.882204,2752.0,2751.6,0.1856]
[1763843809611,0.882204,2752.0,2751.3,0.1856]
[1763843809813,0.405504,2751.9,2751.3,0.1856]
[1763843809998,0.405504,2751.9,2751.3,0.6756]
[1763843811217,0.595304,2751.9,2751.3,0.6756]
[1763843811423,1.50229664,2751.9,2751.3,0.1856]
[1763843811597,0.595304,2751.9,2751.3,0.6756]
[1763843811917,0.595304,2751.9,2751.3,0.6766]
[1763843812122,0.405504,2751.9,2751.4,0.49]
[1763843812324,0.405504,2751.9,2751.8,0.4505]
[1763843812622,0.122,2751.9,2751.8,0.4505]
[1763843812926,0.122,2751.9,2751.8,0.9405]
[1763843814298,0.122,2751.9,2751.8,0.4505]
[1763843814510,0.122,2751.9,2751.3,0.1866]
[1763843814707,0.405504,2751.8,2751.3,0.1866]
[1763843815079,0.405504,2751.6,2751.3,0.6766]
[1763843815280,0.527504,2751.5,2751.4,0.49]
[1763843815718,0.405504,2751.5,2751.4,0.9405]
[1763843816686,0.895504,2751.5,2751.4,0.9405]
[1763843817223,0.405504,2751.5,2751.4,0.9405]
[1763843817420,0.405504,2751.5,2751.4,1.28744236]
[1763843817809,0.405504,2751.5,2751.4,0.9405]
[1763843820704,0.405504,2751.5,2751.3,0.001]
[1763843820705,1.007204,2751.5,2751.3,0.001]
[1763843821227,2.95252761,2751.4,2751.3,0.001]
[1763843821405,1.31249664,2751.4,2751.3,0.001]
[1763843821605,1.43449664,2751.4,2751.3,0.4515]
[1763843822006,1.31249664,2751.4,2751.3,0.4515]
[1763843823317,1.31249664,2751.4,2751.3,0.9415]
[1763843825324,1.31249664,2751.4,2751.3,1.41769154]
[1763843825539,1.31249664,2751.4,2751.3,0.9415]
[1763843826357,0.4765,2752.8,2751.3,8.21079088]
[1763843826668,1.09227343,2752.5,2751.5,0.4648]
[1763843826820,0.90699264,2752.3,2751.5,0.4648]
[1763843827018,3.381456,2752.4,2751.5,0.4648]
[1763843827019,0.405504,2752.1,2751.5,0.4648]
[1763843827320,0.405504,2752.1,2751.5,0.9428]
[1763843828049,0.405504,2752.1,2752.0,0.4648]
[1763843828258,0.405504,2752.1,2751.3,3.63561769]
[1763843828259,0.884004,2752.1,2751.3,0.001]
[1763843828470,1.360504,2752.1,2751.4,0.478]
[1763843828625,1.360504,2752.1,2751.3,0.001]
[1763843828626,0.4765,2752.0,2751.3,0.001]
[1763843829024,0.4765,2752.0,2751.3,0.479]
[1763843829724,0.405504,2752.1,2751.9,0.4648]
[1763843830068,0.405504,2752.4,2752.0,0.4648]
[1763843830367,0.405504,2752.4,2751.4,0.03634513]
[1763843830368,0.405504,2752.2,2751.4,0.478]
[1763843831163,0.33816536,2752.1,2751.3,0.001]
[1763843831369,1.31249664,2751.9,2751.3,0.001]
[1763843831533,0.405504,2751.7,2751.3,0.001]
[1763843832064,0.882004,2751.7,2751.3,0.001]
[1763843832364,0.33876603,2751.6,2751.3,0.001]
[1763843832567,0.884004,2751.4,2751.3,0.001]
[1763843832857,1.006004,2751.4,2751.3,0.001]
[1763843833076,1.482504,2751.4,2751.3,0.001]
[1763843834966,1.62819456,2751.4,2751.3,0.001]
[1763843835329,1.96717521,2751.4,2751.3,0.001]
[1763843835538,1.01217521,2751.4,2751.3,0.001]
[1763843840476,0.86648465,2751.4,2751.3,0.4658]
[1763843841282,0.4765,2752.3,2751.3,0.9438]
[1763843841467,0.479,2752.0,2751.3,0.001]
[1763843841783,0.884004,2751.4,2751.3,0.001]
[1763843841953,1.22314524,2751.4,2751.3,0.001]
[1763843842156,1.69964524,2751.4,2751.3,0.001]
[1763843842356,2.75234064,2751.4,2751.3,0.001]
[1763843842738,1.845348,2751.4,2751.3,0.001]
[1763843842939,2.36707857,2751.4,2751.3,0.001]
[1763843843167,1.368848,2751.4,2751.3,0.001]
[1763843843373,0.86664524,2751.4,2751.3,0.4658]
[1763843844476,1.34514524,2751.4,2751.3,0.001]
[1763843844661,1.82164524,2751.4,2751.3,0.001]
[1763843844861,5.07160289,2751.4,2751.3,0.001]
[1763843845063,9.68572814,2751.4,2751.3,0.001]
[1763843845261,21.44971314,2751.4,2751.3,0.001]
[1763843845478,21.93005235,2751.4,2751.3,0.001]
[1763843846289,10.16606735,2751.4,2751.3,0.001]
[1763843846490,34.88089535,2751.4,2751.3,0.001]
[1763843846690,32.63247035,2751.4,2751.3,0.001]
[1763843846995,24.21357113,2751.4,2751.3,0.001]
[1763843847197,9.68572814,2751.4,2751.3,0.001]
[1763843847367,26.25276414,2751.4,2751.3,0.001]
[1763843847568,25.55026414,2751.4,2751.3,0.001]
[1763843847968,25.30389614,2751.4,2751.3,0.001]
[1763843848196,9.56372814,2751.4,2751.3,0.001]
[1763843848368,20.12622514,2751.4,2751.3,0.001]
[1763843849387,24.45260114,2751.4,2751.3,0.001]
[1763843850267,26.41576114,2751.4,2751.3,0.001]
[1763843850695,24.30743214,2751.4,2751.3,0.001]
[1763843851298,26.02505314,2751.4,2751.3,0.001]
[1763843852513,5.2325072,2751.4,2751.3,0.001]
[1763843852713,17.78696388,2751.4,2751.0,0.001]
[1763843852871,22.70943265,2750.8,2750.7,0.001]
[1763843853208,24.09888054,2750.8,2750.7,0.001]
[1763843853500,39.5108776,2750.8,2750.7,0.001]
[1763843854404,38.67021069,2750.8,2750.7,0.001]
[1763843854576,42.36631684,2750.8,2750.7,0.001]
[1763843854779,23.85071217,2750.8,2750.7,0.001]
[1763843855103,4.60792888,2750.8,2750.7,0.001]
[1763843855269,2.32283388,2750.8,2750.7,0.001]
[1763843855465,9.46326688,2750.8,2750.7,0.001]
[1763843855669,9.86877088,2750.8,2750.7,0.001]
[1763843855865,9.46326688,2750.8,2750.7,0.001]
[1763843856097,14.42646727,2750.8,2750.7,0.001]
[1763843856265,10.02671318,2750.8,2750.7,0.001]
[1763843856471,2.60533788,2750.8,2750.7,0.001]
[1763843856690,6.10288988,2750.8,2750.7,0.001]
[1763843856888,9.73819597,2750.8,2750.7,0.001]
[1763843857304,5.76374864,2750.8,2750.7,0.001]
[1763843857505,12.42421464,2750.8,2750.7,0.001]
[1763843857711,14.04821072,2750.8,2750.7,0.001]
[1763843857870,17.68351681,2750.8,2750.7,0.001]
[1763843858610,11.11836272,2750.8,2750.7,0.001]
[1763843858902,2.38919664,2750.8,2750.7,0.001]
[1763843859104,1.91349664,2750.8,2750.7,0.4552]
[1763843859794,2.40359664,2750.8,2750.7,0.001]
[1763843861776,10.26146773,2750.8,2750.7,0.001]
[1763843862091,1.91349664,2750.8,2750.7,0.001]
[1763843862279,1.91349664,2750.8,2750.7,0.4552]
[1763843862280,2.1048463,2750.8,2750.7,0.4552]
[1763843862807,2.5949463,2750.8,2750.7,0.001]
[1763843863214,2.40359664,2750.8,2750.7,0.001]
[1763843864177,10.57117573,2750.8,2750.7,0.001]
[1763843865194,7.81170864,2750.8,2750.7,0.001]
[1763843865391,2.40359664,2750.8,2750.7,0.001]
[1763843867119,2.7414827,2750.8,2750.7,0.001]
[1763843867324,3.42898197,2750.8,2750.7,0.001]
[1763843868731,3.99943846,2750.8,2750.7,0.001]
[1763843869160,3.99943846,2750.8,2750.7,0.4552]
[1763843869161,1.04845649,2750.8,2750.7,0.4552]
[1763843869431,0.123,2750.8,2750.7,0.928]
[1763843869911,4.87869864,2750.8,2750.7,0.001]
[1763843870294,6.36609604,2750.8,2750.7,0.001]
[1763843870495,7.00290564,2750.8,2750.7,0.001]
[1763843871132,10.63821173,2750.8,2750.7,0.001]
[1763843871334,15.19549573,2750.8,2750.7,0.001]
[1763843872061,10.80134564,2750.8,2750.7,0.001]
[1763843872284,9.95699341,2750.8,2750.7,0.001]
[1763843872578,8.00997241,2750.8,2750.7,0.001]
[1763843873052,11.6452785,2750.8,2750.7,0.001]
[1763843873435,12.6242785,2750.8,2750.7,0.001]
[1763843874164,8.98897241,2750.8,2750.7,0.001]
[1763843874390,8.60797241,2750.8,2750.7,0.001]
[1763843874789,7.64989141,2750.8,2750.7,0.001]
[1763843874977,7.04197241,2750.8,2750.7,0.001]
[1763843875491,14.6155295,2750.8,2750.7,0.001]
[1763843875863,10.98022341,2750.8,2750.7,0.001]
[1763843876464,12.56392341,2750.8,2750.7,0.001]
[1763843876763,16.1992295,2750.8,2750.7,0.001]
[1763843877398,21.8684165,2750.8,2750.7,0.001]
[1763843877602,22.3412165,2750.8,2750.7,0.001]
[1763843877983,20.2592275,2750.8,2750.7,0.001]
[1763843878502,21.6282265,2750.8,2750.7,0.001]
[1763843878969,21.2431855,2750.8,2750.7,0.001]
[1763843879498,20.7062455,2750.8,2750.7,0.001]
[1763843880295,4.44034741,2750.8,2750.7,0.001]
[1763843880609,2.81713781,2750.8,2750.7,0.4552]
[1763843880786,0.9341934,2750.8,2750.7,0.928]
[1763843881301,0.4613934,2750.8,2750.7,0.928]
[1763843881464,0.8668974,2750.8,2750.7,0.4552]
[1763843881669,0.4613934,2750.8,2750.7,0.928]
[1763843881912,0.123,2750.8,2750.7,0.001]
[1763843882090,0.8668974,2750.8,2750.7,0.4552]
[1763843882289,1.01263308,2750.8,2750.7,0.001]
[1763843882510,1.01263308,2750.8,2750.7,0.4552]
[1763843883196,0.4613934,2750.8,2750.7,0.928]
[1763843883691,0.528504,2750.8,2750.7,0.928]
[1763843883888,0.3383934,2750.8,2750.7,0.928]
[1763843884103,0.002,2751.0,2750.7,0.928]
[1763843884309,0.002,2751.0,2750.9,0.4542]
[1763843884516,0.002,2751.0,2750.9,4.56217394]
[1763843884731,0.002,2751.0,2750.9,0.927]
[1763843885831,0.002,2751.0,2750.9,0.9114]
[1763843888031,0.002,2751.0,2750.9,4.54657394]
[1763843889456,0.002,2751.0,2750.9,0.9114]
[1763843891831,0.002,2751.0,2750.9,4.54657394]
[1763843892386,0.002,2751.3,2750.9,8.18174788]
[1763843892540,0.002,2751.3,2751.2,0.73315]
[1763843892743,0.002,2751.3,2751.2,4.36792755]
[1763843892948,0.002,2751.3,2751.2,4.82512755]
[1763843893654,0.405504,2752.5,2751.2,8.4599051]
[1763843893855,0.405504,2752.5,2752.1,0.4524]
[1763843893856,0.90699264,2752.4,2752.1,0.4524]
[1763843894056,0.405504,2752.4,2752.1,0.4524]
[1763843894440,0.528504,2752.5,2752.1,0.6364]
[1763843894772,0.405504,2752.4,2752.1,1.0936]
[1763843895274,0.405504,2752.4,2752.3,0.4524]
[1763843896765,0.123,2752.5,2752.3,0.4524]
[1763843897182,0.528504,2752.5,2752.3,0.4524]
[1763843897771,0.528504,2752.5,2752.1,0.184]
[1763843898145,0.528504,2752.5,2752.4,0.4524]
[1763843898345,0.405504,2752.5,2752.4,0.4524]
[1763843898657,0.405504,2752.5,2752.4,0.9096]
[1763843900759,0.002,2752.5,2752.4,0.9096]
[1763843900961,0.002,2752.5,2752.4,1.36389136]
[1763843901448,0.002,2752.5,2752.4,0.9096]
[1763843902286,0.002,2752.5,2752.4,0.4524]
[1763843902491,0.002,2752.5,2752.4,0.9096]
[1763843904590,0.002,2752.5,2752.4,0.4524]
[1763843905987,0.002,2752.5,2752.4,0.9096]
[1763843906286,0.002,2752.5,2752.4,4.54279284]
[1763843906704,0.002,2752.5,2752.4,4.64034284]
[1763843907055,0.002,2752.5,2752.4,4.54279284]
[1763843908219,0.002,2752.8,2752.4,8.17598568]
[1763843908362,0.002,2752.8,2752.7,0.4524]
[1763843908767,0.002,2752.8,2752.7,0.9096]
[1763843909503,0.002,2752.8,2752.7,4.54239689]
[1763843909667,0.002,2752.8,2752.7,0.9096]
[1763843910562,0.002,2752.8,2752.7,0.4524]
[1763843911469,0.002,2752.8,2752.7,0.9096]
[1763843913939,0.002,2752.8,2752.7,0.4524]
[1763843914318,0.405504,2752.7,2752.2,0.123]
[1763843914649,0.002,2752.8,2752.7,0.4524]
[1763843916151,0.405504,2752.7,2752.3,0.39405152]
[1763843916443,0.002,2752.8,2752.7,0.4812]
[1763843917048,0.002,2752.8,2752.7,0.9712]
[1763843917208,0.002,2752.8,2752.7,0.4812]
[1763843920505,0.002,2752.8,2752.4,0.49]
[1763843920755,0.002,2752.8,2752.5,0.4123306]
[1763843922335,0.002,2752.8,2752.5,0.8777306]
[1763843923409,0.002,2752.8,2752.7,0.455]
[1763843925045,0.002,2752.8,2752.5,0.4123306]
[1763843925349,0.405504,2752.5,2752.1,0.6494]
[1763843925522,0.405504,2752.5,2752.2,0.428299]
[1763843925845,0.405504,2752.7,2752.2,0.428299]
[1763843926215,0.002,2752.8,2752.3,0.4654]
[1763843927852,0.002,2752.8,2752.2,4.06174287]
[1763843927853,0.405504,2752.6,2752.2,0.428299]
[1763843928052,0.405504,2752.6,2752.1,0.184]
[1763843928377,0.405504,2752.6,2752.1,0.6494]
[1763843929077,0.405504,2752.6,2752.2,0.4654]
[1763843930171,0.405504,2752.6,2752.2,4.09884096]
[1763843930376,0.407504,2752.8,2752.5,0.455]
[1763843930571,0.895904,2752.8,2752.5,0.455]
[1763843931773,0.002,2752.8,2752.5,0.455]
[1763843931979,0.405504,2752.5,2752.3,0.4282841]
[1763843932480,0.405504,2752.6,2752.3,0.4282841]
[1763843932981,0.405504,2752.5,2752.3,0.4282841]
[1763843933754,0.002,2752.8,2752.4,0.9204]
[1763843934052,0.002,2752.8,2752.7,0.455]
[1763843934457,0.002,2752.8,2752.5,0.94707168]
[1763843934458,0.405504,2752.7,2752.3,0.4654]
[1763843934874,0.002,2752.8,2752.2,0.1856]
[1763843935084,0.405504,2752.7,2752.2,0.1856]
[1763843935592,0.4884,2752.7,2752.2,0.1856]
[1763843936605,0.27508726,2752.7,2752.2,0.1856]
[1763843937306,0.002,2752.8,2752.2,0.651]
[1763843937510,0.002,2752.8,2752.2,1.07947194]
[1763843938362,0.002,2752.8,2752.2,0.651]
[1763843939391,0.002,2752.8,2752.2,0.1856]
[1763843939572,0.002,2752.8,2752.3,0.4654]
[1763843940866,0.2338,2752.4,2752.1,0.122]
[1763843941200,0.4904,2752.8,2752.1,0.122]
[1763843941401,0.4904,2752.8,2752.3,0.455]
[1763843941599,0.405504,2752.7,2752.0,0.4654]
[1763843941817,0.405504,2752.7,2751.8,0.1938]
[1763843941973,0.4884,2752.6,2751.7,0.122]
[1763843942184,1.39539264,2752.6,2751.7,0.122]
[1763843942418,1.39539264,2752.6,2751.7,0.5874]
[1763843942419,0.4884,2752.6,2751.7,0.5874]
[1763843942587,0.6104,2752.6,2751.8,3.63398502]
[1763843942787,0.6104,2752.6,2751.8,4.09938502]
[1763843943084,0.6104,2752.6,2751.9,0.4654]
[1763843945883,0.2338,2752.0,2751.7,0.122]
[1763843946082,1.31249664,2752.5,2751.6,0.4591]
[1763843946282,0.405504,2752.3,2751.6,0.5811]
[1763843946606,0.405504,2752.5,2752.4,0.4577]
[1763843947006,0.002,2752.8,2752.4,0.9168]
[1763843947205,0.002,2752.8,2752.5,0.4577]
[1763843950337,0.002,2752.8,2752.7,0.4577]
[1763843950635,0.002,2752.8,2752.2,6.16640629]
[1763843950636,0.002,2752.8,2752.2,2.53302378]
[1763843950830,0.002,2752.8,2752.3,0.4591]
[1763843951301,0.405504,2752.7,2752.3,0.4591]
[1763843952745,0.405504,2752.7,2752.2,0.193]
[1763843953040,0.002,2752.8,2752.3,0.4591]
[1763843953535,0.4787,2752.8,2752.3,0.4591]
[1763843953737,0.4787,2752.8,2752.0,0.5811]
[1763843954701,0.4787,2752.8,2752.0,0.4591]
[1763843955019,0.405504,2752.7,2752.0,0.4591]
[1763843955434,0.405504,2752.5,2752.0,0.4591]
[1763843956048,0.405504,2752.4,2752.0,0.4591]
[1763843956539,0.405504,2752.5,2752.0,0.4591]
[1763843956837,0.405504,2752.3,2752.0,0.4591]
[1763843958558,0.405504,2752.3,2751.9,0.123]
[1763843958711,0.4988,2752.1,2751.9,0.001]
[1763843958910,0.0022,2752.0,2751.9,0.001]
[1763843959245,0.2235,2752.2,2751.9,0.001]
[1763843960032,0.405504,2752.5,2752.1,0.6507]
[1763843960237,0.405504,2752.5,2752.4,0.4577]
[1763843961047,0.650904,2752.5,2752.4,0.4577]
[1763843961347,0.650904,2752.5,2752.1,0.6521]
[1763843961536,0.650904,2752.5,2752.2,0.4591]
[1763843961940,0.650904,2752.5,2752.1,0.49231238]
[1763843962137,0.650904,2752.5,2752.1,0.6521]
[1763843962516,0.650904,2752.5,2752.2,0.4591]
[1763843965749,0.405504,2752.5,2752.4,0.4577]
[1763843967781,0.407504,2752.8,2752.4,0.4577]
[1763843968185,0.884204,2752.8,2752.4,0.4577]
[1763843968751,0.407504,2752.8,2752.5,0.4591]
[1763843969981,0.002,2752.8,2752.7,0.4577]
[1763843970873,0.2474,2752.8,2752.2,5.97346055]
[1763843971097,0.2474,2752.8,2752.3,0.4591]
[1763843971815,0.405504,2752.7,2752.3,0.4591]
[1763843972421,0.882204,2752.7,2752.4,0.001]
[1763843972875,0.407504,2752.8,2752.4,0.001]
[1763843973219,0.884204,2752.8,2752.4,0.001]
[1763843974414,0.650904,2752.5,2752.4,0.001]
[1763843974998,1.125304,2752.5,2752.4,0.001]
[1763843982128,1.27093038,2752.5,2752.4,0.001]
[1763843982304,2.09821146,2752.5,2752.4,0.001]
[1763843982723,1.27093038,2752.5,2752.4,0.001]
[1763843983634,0.650904,2752.5,2752.4,0.001]
[1763843983800,0.405504,2752.5,2752.4,0.4548]
[1763843985020,0.122,2752.7,2752.4,0.9378]
[1763843985225,0.405504,2752.6,2752.4,0.484]
[1763843985732,0.405504,2752.6,2752.5,0.4538]
[1763843988535,0.405504,2752.6,2752.5,0.9368]
[1763843989217,0.405504,2752.6,2752.5,0.4538]
[1763843992132,0.859904,2752.6,2752.4,0.001]
[1763843992308,0.888204,2752.5,2752.4,0.001]
[1763843992514,0.645004,2752.5,2752.4,0.001]
[1763843999162,0.405504,2752.5,2752.4,0.4548]
[1763844000942,1.338504,2752.5,2752.4,0.001]
[1763844001335,0.856204,2752.5,2752.4,0.001]
[1763844001743,0.405504,2752.5,2752.4,0.4548]
[1763844002045,1.338504,2752.5,2752.4,0.001]
[1763844003139,0.405504,2752.5,2752.4,0.4548]
[1763844003964,0.002,2752.7,2752.4,0.97413192]
[1763844004137,0.002,2752.7,2752.6,0.4538]
[1763844005957,0.405504,2752.6,2752.4,0.001]
[1763844006126,0.851704,2752.5,2752.4,0.001]
[1763844007269,0.405504,2752.5,2752.4,0.4885]
[1763844009434,0.405504,2752.5,2752.4,0.001]
[1763844009631,0.843804,2752.5,2752.4,0.001]
[1763844010488,1.338404,2752.5,2752.4,0.001]
[1763844011540,0.7071,2752.7,2752.4,0.9496]
[1763844011782,0.529504,2752.7,2752.6,0.4875]
[1763844012141,0.529504,2752.7,2752.6,0.9486]
[1763844012142,0.002,2752.7,2752.6,0.9486]
[1763844013575,0.002,2752.7,2752.6,0.4875]
[1763844014279,0.002,2752.7,2752.6,0.9486]
[1763844016058,0.002,2752.7,2752.4,0.001]
[1763844016253,0.002,2752.7,2752.4,0.4621]
[1763844016584,0.002,2752.7,2752.6,0.4875]
[1763844016749,0.002,2752.7,2752.4,0.001]
[1763844016949,0.405504,2752.6,2752.4,0.001]
[1763844017487,1.338404,2752.5,2752.4,0.001]
[1763844017990,1.48403091,2752.5,2752.4,0.001]
[1763844018148,1.73553327,2752.5,2752.4,0.001]
[1763844020184,2.07557701,2752.5,2752.4,0.001]
[1763844024083,1.32947465,2752.5,2752.4,0.001]
[1763844024390,0.98943091,2752.5,2752.4,0.001]
[1763844024586,1.82387455,2752.5,2752.4,0.001]
[1763844026612,1.82387455,2752.5,2752.4,0.4885]
[1763844026613,0.48547055,2752.5,2752.4,0.4885]
[1763844026819,0.002,2752.7,2752.4,0.4885]
[1763844027004,0.902604,2752.7,2752.4,0.4885]
[1763844027695,0.843804,2752.5,2752.4,0.001]
[1763844031818,1.338404,2752.5,2752.4,0.001]
[1763844032344,0.843804,2752.5,2752.4,0.001]
[1763844032925,0.405504,2752.5,2752.4,0.9496]
[1763844033310,0.843804,2752.5,2752.4,0.001]
[1763844033502,1.338404,2752.5,2752.4,0.001]
[1763844033904,0.843804,2752.5,2752.4,0.001]
[1763844035404,1.338404,2752.5,2752.4,0.001]
[1763844037212,1.792504,2752.5,2752.4,0.001]
[1763844038502,2.06265366,2752.5,2752.4,0.001]
[1763844040220,2.40231235,2752.5,2752.4,0.001]
[1763844042736,16.18831184,2752.5,2752.4,0.001]
[1763844042916,10.77999384,2752.5,2752.4,0.001]
[1763844043836,36.94236584,2752.5,2752.4,0.001]
[1763844045139,34.79423284,2752.5,2752.4,0.001]
[1763844045347,22.31604484,2752.5,2752.4,0.001]
[1763844045553,21.43271084,2752.5,2752.4,0.001]
[1763844045759,6.94236584,2752.5,2752.4,0.001]
[1763844046051,21.89854684,2752.5,2752.4,0.001]
[1763844046365,20.51326484,2752.5,2752.4,0.001]
[1763844046666,19.86615584,2752.5,2752.4,0.001]
[1763844046831,33.50784084,2752.5,2752.4,0.001]
[1763844047774,22.93643384,2752.5,2752.4,0.001]
[1763844047943,24.39919684,2752.5,2752.4,0.001]
[1763844048261,19.50678684,2752.5,2752.4,0.001]
[1763844048432,19.62878684,2752.5,2752.4,0.001]
[1763844048856,22.54158484,2752.5,2752.4,0.001]
[1763844049267,22.20697284,2752.5,2752.4,0.001]
[1763844049768,21.75540484,2752.5,2752.4,0.001]
[1763844049953,21.32360884,2752.5,2752.4,0.001]
[1763844050465,21.834981,2752.5,2752.4,0.001]
[1763844050838,8.05186716,2752.5,2752.4,0.001]
[1763844051175,25.93412516,2752.5,2752.4,0.001]
[1763844051379,22.93473116,2752.5,2752.4,0.001]
[1763844051753,17.35585316,2752.5,2752.4,0.001]
[1763844051958,16.807261,2752.5,2752.4,0.001]
[1763844052643,17.28339016,2752.5,2752.4,0.001]